[Event "25th Troya Open 2017"]
[Site "Canakkale"]
[Date "2017.08.08"]
[Round "2.11"]
[White "Cakin, Hasan Ali"]
[Black "Cakin, Ahmet Burak"]
[Result "0-1"]
[ECO "D53"]
[WhiteElo "1560"]
[BlackElo "1653"]
[Annotator "NA RC"]
[PlyCount "72"]
[EventCountry "TUR"]
[SourceTitle "playchess.com"]
[Source "ChessBase"]
[SourceQuality "1"]
[TimeControl "5400+30"]

1. d4 {[%emt 0:00:30]} d5 {[%emt 0:01:00]} 2. Nf3 {[%emt 0:00:30]} Nf6 {[%emt 0:00:30]} 3. c4 {[%emt 0:00:30]} c6 {[%emt 0:00:30]} 4. Nc3 {[%emt 0:00:30]} e6 {[%emt 0:00:30]} 5. Bg5 {[%emt 0:00:30]} Nbd7 {[%emt 0:01:30]} 6. e3 {[%emt 0:00:00]} Be7 {[%emt 0:01:30]} 7. Bd3 {[%emt 0:07:00]} dxc4 {[%emt 0:01:30]} 8. Bxc4 {[%emt 0:00:30]} b5 {[%emt 0:00:30]} 9. Bd3 {[%emt 0:00:30]} a6 {[%emt 0:01:30]} 10. O-O {[%emt 0:01:30]} Bb7 {[%emt 0:06:30]} 11. Rc1 {[%emt 0:01:30]} Rc8 {[%emt 0:09:30]} 12. Re1 {[%emt 0:02:30]} O-O {[%emt 0:00:30]} 13. e4 {[%emt 0:00:30]} c5 {[%emt 0:00:30]} 14. e5 {[%emt 0:00:30]} Nd5 {[%emt 0:00:30]} 15. Bxe7 {[%emt 0:00:30]} Qxe7 {[%emt 0:00:30]} 16. Nxd5 {[%emt 0:01:30]} Bxd5 {[%emt 0:01:30]} 17. dxc5 {[%emt 0:00:00]} Rxc5 {[%emt 0:09:30]} 18. b3 {[%emt 0:01:00]} Bxf3 {[%emt 0:00:30]} 19. Qxf3 {[%emt 0:00:30]} Rxe5 {[%emt 0:00:30]} 20. Red1 {[%emt 0:01:30]} Rd5 {[%emt 0:10:30]} 21. Be4 {[%emt 0:04:30]} Rxd1+ {[%emt 0:01:30]} 22. Qxd1 {[%emt 0:00:30]} Nf6 {[%emt 0:03:30]} 23. Bb1 {[%emt 0:00:30]} Rd8 {[%emt 0:00:30]} 24. Qc2 {[%emt 0:01:30]} g6 {[%emt 0:00:30]} 25. Qc6 {[%emt 0:00:30]} Rd6 {[%emt 0:00:30]} 26. Qc8+ {[%emt 0:01:30]} Kg7 {[%emt 0:00:30]} 27. h3 {[%emt 0:00:00]} Qd8 {[%emt 0:02:30]} 28. Qxd8 {[%emt 0:03:00]} Rxd8 {[%emt 0:00:30]} 29. g4 {[%emt 0:03:30]} b4 {[%emt 0:01:30]} 30. g5 {[%emt 0:00:30]} Nd5 {[%emt 0:00:30]} 31. Kg2 {[%emt 0:03:30]} Nc3 {[%emt 0:02:30]} 32. a3 {[%emt 0:00:30]} a5 {[%emt 0:06:30]} 33. axb4 {[%emt 0:02:30]} axb4 {[%emt 0:00:00]} 34. h4 {[%emt 0:00:30]} Rd2 {[%emt 0:00:00]} 35. Kf3 {[%emt 0:00:30]} Rb2 {[%emt 0:01:30]} 36. Bc2 {[%emt 0:00:30]} Na2 {[%emt 0:00:30]} 0-1

[Event "25th Troya Open 2017"]
[Site "Canakkale"]
[Date "2017.08.08"]
[Round "2.12"]
[White "Koc, Serkan"]
[Black "Ozgur, Sina"]
[Result "0-1"]
[ECO "C59"]
[WhiteElo "1721"]
[BlackElo "1512"]
[Annotator "NA RC"]
[PlyCount "96"]
[EventCountry "TUR"]
[SourceTitle "playchess.com"]
[Source "ChessBase"]
[SourceQuality "1"]
[TimeControl "5400+30"]

1. e4 {[%emt 0:00:30]} e5 {[%emt 0:01:00]} 2. Nf3 {[%emt 0:00:30]} Nc6 {[%emt 0:00:30]} 3. Bc4 {[%emt 0:00:30]} Nf6 {[%emt 0:00:30]} 4. Ng5 {[%emt 0:00:30]} d5 {[%emt 0:00:30]} 5. exd5 {[%emt 0:00:30]} Na5 {[%emt 0:00:30]} 6. Bb5+ {[%emt 0:00:30]} c6 {[%emt 0:00:30]} 7. dxc6 {[%emt 0:00:30]} bxc6 {[%emt 0:00:30]} 8. Be2 {[%emt 0:00:30]} h6 {[%emt 0:00:30]} 9. Nf3 {[%emt 0:00:30]} e4 {[%emt 0:00:30]} 10. Ne5 {[%emt 0:00:30]} Bc5 {[%emt 0:00:00]} 11. c3 {[%emt 0:00:00]} Qc7 {[%emt 0:03:00]} 12. d4 {[%emt 0:05:00]} exd3 {[%emt 0:04:30]} 13. Nxd3 {[%emt 0:00:30]} Bd6 {[%emt 0:00:30]} 14. f4 {[%emt 0:07:30]} Nd5 {[%emt 0:05:30]} 15. Qa4 {[%emt 0:05:30]} O-O {[%emt 0:07:30]} 16. O-O {[%emt 0:01:30]} Qb6+ {[%emt 0:10:30]} 17. Qd4 {[%emt 0:03:30]} Qxd4+ {[%emt 0:04:30]} 18. cxd4 {[%emt 0:00:30]} Re8 {[%emt 0:02:30]} 19. Nc3 {[%emt 0:03:30]} Nxc3 {[%emt 0:00:30]} 20. Bh5 {[%emt 0:02:30]} Ne2+ {[%emt 0:01:30]} 21. Bxe2 {[%emt 0:07:30]} Rxe2 {[%emt 0:01:30]} 22. b3 {[%emt 0:01:30]} Ba6 {[%emt 0:01:30]} 23. Rd1 {[%emt 0:11:30]} Bxd3 {[%emt 0:01:30]} 24. Rxd3 {[%emt 0:00:00]} Re1+ {[%emt 0:00:30]} 25. Kf2 {[%emt 0:00:00]} Rae8 {[%emt 0:00:30]} 26. Kf3 {[%emt 0:05:30]} Rf1+ {[%emt 0:00:30]} 27. Kg4 {[%emt 0:01:30]} Ree1 {[%emt 0:00:30]} 28. Rf3 {[%emt 0:01:30]} Rg1 {[%emt 0:01:30]} 29. b4 {[%emt 0:05:30]} Nb7 {[%emt 0:03:30]} 30. Rc3 {[%emt 0:00:30]} Rxg2+ {[%emt 0:00:30]} 31. Kh3 {[%emt 0:03:30]} Rgg1 {[%emt 0:01:30]} 32. Rxc6 {[%emt 0:00:30]} Ref1 {[%emt 0:07:30]} 33. Rc3 {[%emt 0:02:30]} Kh7 {[%emt 0:02:30]} 34. a4 {[%emt 0:02:30]} Bxb4 {[%emt 0:01:30]} 35. Rb3 {[%emt 0:08:30]} a5 {[%emt 0:00:30]} 36. Rg3 {[%emt 0:01:50]} Rh1 {[%emt 0:00:30]} 37. Ra2 {[%emt 0:01:23]} Rxc1 {[%emt 0:01:30]} 38. Rag2 {[%emt 0:00:45]} Bf8 {[%emt 0:01:30]} 39. Rb3 {[%emt 0:06:27]} Rb1 {[%emt 0:03:30]} 40. Rc3 {[%emt 0:01:10]} Rhc1 {[%emt 0:00:30]} 41. Re3 {[%emt 0:00:41]} Nd6 {[%emt 0:00:30]} 42. Re5 {[%emt 0:01:14]} Rc3+ {[%emt 0:01:30]} 43. Kg4 {[%emt 0:05:35]} Rbb3 {[%emt 0:01:30]} 44. Rg3 {[%emt 0:03:43]} Rxg3+ {[%emt 0:00:00]} 45. hxg3 {[%emt 0:00:00]} Nc4 {[%emt 0:01:00]} 46. Re8 {[%emt 0:00:20]} Bd6 {[%emt 0:00:30]} 47. Rc8 {[%emt 0:01:02]} Rb4 {[%emt 0:00:30]} 48. Re8 {[%emt 0:01:35]} Rxa4 {[%emt 0:00:00]} 0-1